bitfinex/quotes_BTCUSD_20241021
["timestamp","ask_amount","ask_price","bid_price","bid_amount"]
[1729517665458,0.49589335,67826.0,67825.0,0.000828]
[1729517665679,0.48189335,67826.0,67825.0,0.000828]
[1729517665915,0.67906236,67826.0,67825.0,0.000828]
[1729517666144,0.54511466,67826.0,67825.0,0.000828]
[1729517666606,0.54511466,67826.0,67819.0,0.000834]
[1729517666607,0.280965,67820.0,67819.0,0.000834]
[1729517666824,0.275466,67812.0,67811.0,0.22113457]
[1729517667048,0.46799996,67812.0,67811.0,0.22113457]
[1729517667277,0.175468,67811.0,67810.0,0.3607]
[1729517667501,0.32442715,67811.0,67810.0,0.3607]
[1729517667985,0.29642715,67811.0,67810.0,0.3607]
[1729517668201,0.32442715,67811.0,67810.0,0.3607]
[1729517668637,0.31042715,67811.0,67810.0,0.3607]
[1729517668867,0.32442715,67811.0,67810.0,0.3607]
[1729517670697,0.17695915,67811.0,67810.0,0.3657]
[1729517671137,0.32442715,67811.0,67810.0,0.3657]
[1729517671355,0.29642715,67811.0,67810.0,0.3657]
[1729517671828,0.29642715,67811.0,67810.0,0.3607]
[1729517671829,0.32442715,67811.0,67810.0,0.3607]
[1729517672113,0.41832715,67811.0,67810.0,0.3607]
[1729517672343,0.43232715,67811.0,67810.0,0.3607]
[1729517672572,0.43284315,67811.0,67810.0,0.3607]
[1729517672831,0.43232715,67811.0,67810.0,0.361527]
[1729517673801,0.41832715,67811.0,67810.0,0.361527]
[1729517674047,0.40432715,67811.0,67810.0,0.361527]
[1729517674340,0.43232715,67811.0,67810.0,0.361527]
[1729517674582,0.005,67803.0,67787.0,0.000834]
[1729517674845,0.42444515,67803.0,67797.0,0.22113457]
[1729517675073,0.42444515,67803.0,67787.0,0.000834]
[1729517675313,0.42496115,67803.0,67787.0,0.000834]
[1729517675538,0.175514,67790.0,67787.0,0.000834]
[1729517675801,0.152518,67788.0,67787.0,0.000834]
[1729517676033,0.32447715,67788.0,67787.0,0.000834]
[1729517676265,0.46005962,67788.0,67787.0,0.000834]
[1729517676748,0.42447715,67788.0,67787.0,0.000834]
[1729517677277,0.42499315,67788.0,67787.0,0.000834]
[1729517677727,0.43347715,67788.0,67787.0,0.000834]
[1729517677964,0.44330408,67788.0,67787.0,0.000834]
[1729517678178,0.45230408,67788.0,67787.0,0.000834]
[1729517678402,0.43347715,67788.0,67787.0,0.000834]
[1729517678619,0.33347715,67788.0,67787.0,0.000834]
[1729517679051,0.17695915,67788.0,67787.0,0.000834]
[1729517679476,0.17695915,67788.0,67787.0,0.005834]
[1729517679991,0.17695915,67788.0,67787.0,0.007318]
[1729517680220,0.17695915,67788.0,67787.0,0.008818]
[1729517680221,0.19095915,67788.0,67787.0,0.008818]
[1729517680453,0.22113457,67795.0,67794.0,0.0065]
[1729517680673,0.37009372,67795.0,67794.0,0.0065]
[1729517680885,0.14895915,67795.0,67794.0,0.155489]
[1729517681107,0.00261439,67803.0,67802.0,0.005]
[1729517681312,0.15157354,67803.0,67802.0,0.005]
[1729517681525,0.15157354,67803.0,67801.0,0.005]
[1729517681763,0.00261439,67803.0,67802.0,0.005]
[1729517682035,0.00261439,67803.0,67802.0,0.153988]
[1729517682287,0.00261439,67803.0,67802.0,0.239388]
[1729517682968,0.00261439,67803.0,67802.0,0.234388]
[1729517683208,0.00261439,67803.0,67802.0,0.235872]
[1729517683432,0.01661439,67803.0,67802.0,0.088384]
[1729517683658,0.03061439,67803.0,67802.0,0.007984]
[1729517683871,0.03061439,67803.0,67802.0,0.155472]
[1729517684084,0.01661439,67803.0,67802.0,0.155472]
[1729517684740,0.01061439,67803.0,67802.0,0.155472]
[1729517684960,0.01361439,67803.0,67802.0,0.255472]
[1729517685390,0.00261439,67803.0,67802.0,0.255472]
[1729517686327,0.01661439,67803.0,67802.0,0.255472]
[1729517686767,0.00261439,67803.0,67802.0,0.255472]
[1729517686981,0.02461439,67803.0,67802.0,0.255472]
[1729517687469,0.01061439,67803.0,67802.0,0.107984]
[1729517687690,0.15957354,67803.0,67802.0,0.1065]
[1729517687920,0.65619411,67803.0,67802.0,0.1]
[1729517688166,0.43505954,67803.0,67802.0,0.1]
[1729517688397,0.35105954,67803.0,67802.0,0.1]
[1729517688618,0.31805954,67803.0,67802.0,0.105]
[1729517688847,0.40705954,67803.0,67802.0,0.1]
[1729517689287,0.15157354,67803.0,67802.0,0.1]
[1729517689533,0.29905954,67803.0,67802.0,0.1]
[1729517689764,0.31305954,67803.0,67802.0,0.1]
[1729517690056,0.29905954,67803.0,67802.0,0.1]
[1729517690279,0.32705954,67803.0,67802.0,0.1]
[1729517690516,0.31305954,67803.0,67802.0,0.1]
[1729517690763,0.15157354,67803.0,67802.0,0.105]
[1729517690994,0.16557354,67803.0,67802.0,0.106484]
[1729517691238,0.17957354,67803.0,67802.0,0.105]
[1729517691488,0.17957354,67803.0,67802.0,0.106484]
[1729517691742,0.17957354,67803.0,67802.0,0.1]
[1729517691743,0.31305954,67803.0,67802.0,0.1]
[1729517692192,0.32705954,67803.0,67802.0,0.1]
[1729517692406,0.31305954,67803.0,67802.0,0.1]
[1729517692648,0.32705954,67803.0,67802.0,0.1]
[1729517692881,0.31305954,67803.0,67802.0,0.1]
[1729517693362,0.29905954,67803.0,67802.0,0.1]
[1729517693586,0.31305954,67803.0,67802.0,0.1]
[1729517693812,0.32705954,67803.0,67802.0,0.1]
[1729517694255,0.29905954,67803.0,67802.0,0.1]
[1729517694473,0.34105954,67803.0,67802.0,0.1]
[1729517695151,0.32705954,67803.0,67802.0,0.1]
[1729517695371,0.34105954,67803.0,67802.0,0.1]
[1729517695608,0.35505954,67803.0,67802.0,0.1]
[1729517696102,0.34105954,67803.0,67802.0,0.1]
[1729517696316,0.49840611,67803.0,67802.0,0.1]
[1729517696540,0.48992211,67803.0,67802.0,0.1]
[1729517696761,0.47592211,67803.0,67802.0,0.1]
[1729517696986,0.48940611,67803.0,67802.0,0.1]
[1729517697689,0.47540611,67803.0,67802.0,0.1]
[1729517697927,0.48940611,67803.0,67802.0,0.1]
[1729517698371,0.47540611,67803.0,67802.0,0.1]
[1729517698604,0.48940611,67803.0,67802.0,0.1]
[1729517698831,0.48940611,67803.0,67802.0,0.100827]
[1729517699081,0.49106011,67803.0,67802.0,0.100827]
[1729517699329,0.50506011,67803.0,67802.0,0.100827]
[1729517700530,0.32871354,67803.0,67802.0,0.100827]
[1729517701278,0.31471354,67803.0,67802.0,0.100827]
[1729517701537,0.32871354,67803.0,67802.0,0.100827]
[1729517701783,0.43771354,67803.0,67802.0,0.100827]
[1729517702033,0.44271354,67803.0,67802.0,0.100827]
[1729517702255,0.47204978,67803.0,67802.0,0.100827]
[1729517702468,0.48604978,67803.0,67802.0,0.100827]
[1729517702683,0.48656578,67803.0,67802.0,0.100827]
[1729517702977,0.48604978,67803.0,67802.0,0.100827]
[1729517703415,0.42371354,67803.0,67802.0,0.100827]
[1729517703878,0.16722754,67803.0,67802.0,0.100827]
[1729517704118,0.16722754,67803.0,67802.0,0.107327]
[1729517704339,0.15322754,67803.0,67802.0,0.107327]
[1729517704553,0.16722754,67803.0,67802.0,0.107327]
[1729517704770,0.18122754,67803.0,67802.0,0.108811]
[1729517705037,0.16722754,67803.0,67802.0,0.108811]
[1729517705584,0.03226839,67803.0,67802.0,0.256299]
[1729517705833,0.03226839,67803.0,67802.0,0.108811]
[1729517706061,0.16722754,67803.0,67802.0,0.105827]
[1729517706297,0.31471354,67803.0,67802.0,0.105827]
[1729517706525,0.32871354,67803.0,67802.0,0.105827]
[1729517706749,0.32871354,67803.0,67802.0,0.100827]
[1729517706979,0.31471354,67803.0,67802.0,0.100827]
[1729517707206,0.32871354,67803.0,67802.0,0.100827]
[1729517707434,0.46222954,67803.0,67802.0,0.100827]
[1729517707650,0.46222954,67803.0,67798.0,0.000827]
[1729517707651,0.010516,67799.0,67798.0,0.000827]
[1729517707906,0.76478626,67799.0,67798.0,0.000827]
[1729517708549,0.87780228,67799.0,67798.0,0.000827]
[1729517708760,0.81239391,67799.0,67798.0,0.000827]
[1729517709223,0.82639391,67799.0,67798.0,0.000827]
[1729517709661,0.82087791,67799.0,67798.0,0.000827]
[1729517709884,0.7495608,67799.0,67798.0,0.000827]
[1729517710321,0.7635608,67799.0,67798.0,0.000827]
[1729517710578,0.7685608,67799.0,67798.0,0.000827]
[1729517710803,0.7825608,67799.0,67798.0,0.000827]
[1729517711024,0.6355608,67799.0,67798.0,0.000827]
[1729517711479,0.6635608,67799.0,67798.0,0.000827]
[1729517711697,0.6775608,67799.0,67798.0,0.000827]
[1729517711930,0.6865608,67799.0,67798.0,0.000827]
[1729517712146,0.7915608,67799.0,67798.0,0.000827]
[1729517712365,0.7825608,67799.0,67798.0,0.000827]
[1729517712592,0.7965608,67799.0,67798.0,0.000827]
[1729517712808,0.276034,67788.0,67787.0,0.000834]
[1729517713020,0.42447715,67788.0,67787.0,0.000834]
[1729517713692,0.42947715,67788.0,67787.0,0.000834]
[1729517713935,0.45258516,67788.0,67787.0,0.000834]
[1729517714164,0.67423573,67788.0,67787.0,0.000834]
[1729517714426,0.46710116,67788.0,67787.0,0.000834]
[1729517714891,0.51040494,67788.0,67787.0,0.000834]
[1729517715350,0.61112519,67788.0,67787.0,1e-06]
[1729517715608,0.61112519,67788.0,67783.0,0.000834]
[1729517715609,0.281043,67784.0,67783.0,0.000834]
[1729517715832,0.47330593,67784.0,67783.0,0.000834]
[1729517716710,0.53863484,67784.0,67783.0,0.000834]
[1729517716933,0.473039,67784.0,67783.0,0.000834]
[1729517717138,0.43000215,67784.0,67783.0,0.000834]
[1729517717349,0.555464,67784.0,67783.0,0.000834]
[1729517717581,0.742564,67784.0,67783.0,0.000834]
[1729517717809,0.742564,67784.0,67764.0,9e-05]
[1729517717810,0.270568,67765.0,67764.0,9e-05]
[1729517718036,0.41952715,67765.0,67764.0,9e-05]
[1729517718541,0.42452715,67765.0,67764.0,9e-05]
[1729517718769,0.92067772,67765.0,67764.0,9e-05]
[1729517718994,0.92067772,67765.0,67757.0,0.000834]
[1729517718995,0.2811,67758.0,67757.0,1e-06]
[1729517719219,0.52091856,67758.0,67757.0,1e-06]
[1729517719436,0.58616807,67758.0,67757.0,1e-06]
[1729517719653,0.47770118,67758.0,67757.0,1e-06]
[1729517719869,0.47770118,67758.0,67742.0,0.000834]
[1729517719870,0.005,67743.0,67742.0,0.000834]
[1729517720124,0.42457515,67743.0,67742.0,0.000834]
[1729517721241,0.43357515,67743.0,67742.0,0.000834]
[1729517721462,0.41957515,67743.0,67742.0,0.000834]
[1729517721917,0.43357515,67743.0,67742.0,0.000834]
[1729517722213,0.41957515,67743.0,67742.0,0.000834]
[1729517722451,0.42457515,67743.0,67742.0,0.000834]
[1729517722690,0.45809115,67743.0,67742.0,0.000834]
[1729517723625,0.44357515,67743.0,67742.0,0.000834]
[1729517724102,0.42957515,67743.0,67742.0,0.000834]
[1729517724380,0.39657515,67743.0,67742.0,0.000834]
[1729517724647,0.31057515,67743.0,67742.0,0.000834]
[1729517724908,0.30157515,67743.0,67742.0,0.000834]
[1729517725155,0.31557515,67743.0,67742.0,0.000834]
[1729517725666,0.31557515,67743.0,67734.0,0.000835]
[1729517725667,0.275634,67735.0,67734.0,0.000835]
[1729517725920,0.42459315,67735.0,67734.0,0.000835]
[1729517726162,0.42510915,67735.0,67734.0,0.000835]
[1729517726391,0.42459315,67735.0,67734.0,0.000835]
[1729517727135,0.43820108,67735.0,67734.0,0.000835]
[1729517728330,0.39659315,67735.0,67734.0,0.000835]
[1729517728842,0.41059315,67735.0,67734.0,0.000835]
[1729517729090,0.24895915,67735.0,67734.0,0.000835]
[1729517729351,0.39659315,67735.0,67734.0,0.000835]
[1729517729609,0.16295915,67735.0,67734.0,0.000835]
[1729517729857,0.17695915,67735.0,67734.0,0.000835]
[1729517730077,0.16295915,67735.0,67734.0,0.00772707]
[1729517730298,0.17695915,67735.0,67734.0,0.00772707]
[1729517731197,0.16295915,67735.0,67734.0,0.00772707]
[1729517731403,0.31059315,67735.0,67734.0,0.005835]
[1729517731839,0.29659315,67735.0,67734.0,0.005835]
[1729517732056,0.32917751,67735.0,67734.0,0.005835]
[1729517732520,0.34317751,67735.0,67734.0,0.005835]
[1729517732699,0.35717751,67735.0,67734.0,0.005835]
[1729517732980,0.34317751,67735.0,67734.0,0.005835]
[1729517733208,0.38017751,67735.0,67734.0,0.000835]
[1729517733678,0.48478544,67735.0,67734.0,0.000835]
[1729517734117,0.45678544,67735.0,67734.0,0.000835]
[1729517734325,0.46178544,67735.0,67734.0,0.000835]
[1729517734548,0.46230144,67735.0,67734.0,0.000835]
[1729517734773,0.44944144,67735.0,67734.0,0.000835]
[1729517734973,0.46344144,67735.0,67734.0,0.000835]
[1729517735208,0.69909201,67735.0,67734.0,0.000835]
[1729517735420,0.46395744,67735.0,67734.0,0.000835]
[1729517735850,0.47795744,67735.0,67734.0,0.000835]
[1729517736476,0.46395744,67735.0,67734.0,0.000835]
[1729517736981,0.46344144,67735.0,67734.0,0.000835]
[1729517737213,0.44995744,67735.0,67734.0,0.000835]
[1729517737633,0.46395744,67735.0,67734.0,0.000835]
[1729517737877,0.44483351,67735.0,67734.0,0.000835]
[1729517738123,0.44944144,67735.0,67734.0,0.000835]
[1729517738772,0.43544144,67735.0,67734.0,0.000835]
[1729517738993,0.42144144,67735.0,67734.0,0.000835]
[1729517739209,0.47244144,67735.0,67734.0,0.000835]
[1729517739651,0.45844144,67735.0,67734.0,0.000835]
[1729517740515,0.44444144,67735.0,67734.0,0.000835]
[1729517740947,0.45844144,67735.0,67734.0,0.000835]
[1729517741167,0.47244144,67735.0,67734.0,0.000835]
[1729517741616,0.48644144,67735.0,67734.0,0.000835]
[1729517742042,0.45844144,67735.0,67734.0,0.000835]
[1729517742488,0.46783351,67735.0,67734.0,0.000835]
[1729517743410,0.19719951,67735.0,67734.0,0.08722707]
[1729517743618,0.04824036,67735.0,67734.0,0.08722707]
[1729517743833,0.029656,67735.0,67734.0,0.23634707]
[1729517744277,0.015656,67735.0,67734.0,0.23634707]
[1729517744512,0.001656,67735.0,67734.0,0.23634707]
[1729517744725,0.029656,67735.0,67734.0,0.23634707]
[1729517745380,0.001656,67735.0,67734.0,0.23634707]
[1729517745631,0.015656,67735.0,67734.0,0.23634707]
[1729517745860,0.026656,67735.0,67734.0,0.23634707]
[1729517746066,0.026656,67735.0,67734.0,0.25134707]
[1729517747075,0.015656,67735.0,67734.0,0.24134707]
[1729517747299,0.001656,67735.0,67734.0,0.25134707]
[1729517747559,0.009656,67735.0,67734.0,0.25134707]
[1729517747754,0.012656,67735.0,67734.0,0.25134707]
[1729517748171,0.007656,67735.0,67734.0,0.25134707]
[1729517748630,0.007656,67735.0,67734.0,0.09871107]
[1729517748631,0.016656,67735.0,67734.0,0.09871107]
[1729517748844,0.016656,67735.0,67734.0,0.09371107]
[1729517749285,0.016656,67735.0,67734.0,0.24134707]
[1729517749503,0.016656,67735.0,67734.0,0.08871107]
[1729517749719,0.31324915,67735.0,67734.0,0.000835]
[1729517750154,0.45074039,67735.0,67734.0,0.000835]
[1729517750604,0.45586432,67735.0,67734.0,0.000835]
[1729517750826,0.44934832,67735.0,67734.0,0.000835]
[1729517751075,0.44534832,67735.0,67734.0,0.000835]
[1729517751287,0.45934832,67735.0,67734.0,0.000835]
[1729517751489,0.47334832,67735.0,67734.0,0.000835]
[1729517751924,0.44074039,67735.0,67734.0,0.000835]
[1729517752137,0.32674039,67735.0,67734.0,0.000835]
[1729517752366,0.32674039,67735.0,67734.0,0.00122707]
[1729517752367,0.17910639,67735.0,67734.0,0.00122707]
[1729517752798,0.19310639,67735.0,67734.0,0.00122707]
[1729517753246,0.19310639,67735.0,67734.0,0.00271107]
[1729517753874,0.34074039,67735.0,67734.0,0.00271107]
[1729517754314,0.34074039,67735.0,67734.0,0.00122707]
[1729517754525,0.32674039,67735.0,67734.0,0.000835]
[1729517754736,0.31274039,67735.0,67734.0,0.000835]
[1729517754976,0.32674039,67735.0,67734.0,0.000835]
[1729517755206,0.46834832,67735.0,67734.0,0.000835]
[1729517755626,0.45434832,67735.0,67734.0,0.000835]
[1729517756054,0.46834832,67735.0,67734.0,0.000835]
[1729517756273,0.46374039,67735.0,67734.0,0.000835]
[1729517756503,0.43574039,67735.0,67734.0,0.000835]
[1729517756719,0.41274039,67735.0,67734.0,0.000835]
[1729517756925,0.42674039,67735.0,67734.0,0.000835]
[1729517757567,0.41274039,67735.0,67734.0,0.000835]
[1729517757798,0.42674039,67735.0,67734.0,0.000835]
[1729517758016,0.44074039,67735.0,67734.0,0.000835]
[1729517758870,0.45474039,67735.0,67734.0,0.000835]
[1729517759076,0.47774039,67735.0,67734.0,0.000835]
[1729517759314,0.46374039,67735.0,67734.0,0.000835]
[1729517759527,0.47774039,67735.0,67734.0,0.000835]
[1729517759743,0.45934832,67735.0,67734.0,0.000835]
[1729517759959,0.47334832,67735.0,67734.0,0.000835]
[1729517761664,0.47386432,67735.0,67734.0,0.000835]
[1729517761917,0.47334832,67735.0,67734.0,0.000835]
[1729517762117,0.46874039,67735.0,67734.0,0.000835]
[1729517762542,0.44074039,67735.0,67734.0,0.000835]
[1729517762786,0.44534832,67735.0,67734.0,0.000835]
[1729517762998,0.45086432,67735.0,67734.0,0.000835]
[1729517763212,0.53136432,67735.0,67734.0,0.000835]
[1729517763616,0.57473639,67735.0,67734.0,0.000835]
[1729517763827,0.61942242,67735.0,67734.0,0.000835]
[1729517764030,0.64110846,67735.0,67734.0,0.000835]
[1729517764473,0.64148611,67735.0,67734.0,0.000835]
[1729517764661,0.55384832,67735.0,67734.0,0.000835]
[1729517764868,0.73786432,67735.0,67734.0,0.000835]
[1729517765072,0.8468093,67735.0,67734.0,0.000835]
[1729517765304,0.73786432,67735.0,67734.0,0.000835]
[1729517765549,0.73734832,67735.0,67734.0,0.000835]
[1729517765984,0.73786432,67735.0,67734.0,0.000835]
[1729517766646,0.78112213,67735.0,67734.0,0.000835]
[1729517767125,0.49360613,67735.0,67734.0,0.000835]
[1729517768447,0.51660613,67735.0,67734.0,0.000835]
[1729517768655,0.61588693,67735.0,67734.0,0.000835]
[1729517768857,0.57110775,67735.0,67734.0,0.000835]
[1729517769070,0.4839982,67735.0,67734.0,0.000835]
[1729517769278,0.52755741,67735.0,67734.0,0.000835]
[1729517769747,0.48429836,67735.0,67734.0,0.000835]
[1729517769960,0.44074039,67735.0,67734.0,0.000835]
[1729517770418,0.48429836,67735.0,67734.0,0.000835]
[1729517770620,0.48430218,67735.0,67734.0,0.000835]
[1729517770956,0.48430218,67735.0,67734.0,0.00271107]
[1729517770957,0.19310639,67735.0,67734.0,0.00271107]
[1729517771578,0.34074039,67735.0,67734.0,0.00271107]
[1729517771801,0.31274039,67735.0,67734.0,0.00122707]
[1729517772031,0.45630095,67735.0,67734.0,0.000835]
[1729517772243,0.45601297,67735.0,67734.0,0.000835]
[1729517772462,0.49208777,67735.0,67734.0,0.000835]
[1729517772679,0.55712436,67735.0,67734.0,0.002319]
[1729517772891,0.55712436,67735.0,67734.0,0.000835]
[1729517773103,0.44074039,67735.0,67734.0,0.000835]
[1729517773321,0.29310639,67735.0,67734.0,0.00122707]
[1729517773564,0.27910639,67735.0,67734.0,0.00122707]
[1729517773771,0.17910639,67735.0,67734.0,0.00122707]
[1729517773995,0.03014724,67735.0,67734.0,0.00772707]
[1729517774256,0.01614724,67735.0,67734.0,0.00772707]
[1729517774489,3.03014724,67735.0,67734.0,0.27891107]
[1729517774706,3.01614724,67735.0,67734.0,0.44154707]
[1729517774924,2.02766621,67735.0,67734.0,0.44154707]
[1729517775134,2.04166621,67735.0,67734.0,0.44154707]
[1729517775352,0.04186621,67735.0,67734.0,0.44154707]
[1729517775581,0.22113457,67744.0,67743.0,0.00837607]
[1729517776004,0.147591,67755.0,67751.0,0.001484]
[1729517776225,0.147591,67755.0,67750.0,0.005]
[1729517776226,0.14895915,67752.0,67750.0,0.005]
[1729517776442,0.29655615,67752.0,67751.0,0.00039207]
[1729517776667,0.59175015,67752.0,67751.0,0.00187607]
[1729517776914,0.59175015,67752.0,67744.0,0.005]
[1729517776915,0.1,67747.0,67744.0,0.005]
[1729517777133,0.247634,67735.0,67734.0,0.000835]
[1729517777379,0.41959315,67735.0,67734.0,0.000835]
[1729517779152,0.46311526,67735.0,67734.0,0.000835]
[1729517779389,0.42420108,67735.0,67734.0,0.000835]
[1729517779626,0.42971708,67735.0,67734.0,0.000835]
[1729517779893,0.50848425,67735.0,67734.0,0.000835]
[1729517780135,0.49448425,67735.0,67734.0,0.000835]
[1729517780611,0.50848425,67735.0,67734.0,0.000835]
[1729517780861,0.50900025,67735.0,67734.0,0.001835]
[1729517781106,0.51013625,67735.0,67734.0,0.001835]
[1729517781358,0.51013625,67735.0,67734.0,0.000835]
[1729517781598,0.51013625,67735.0,67734.0,0.001835]
[1729517781835,0.43085308,67735.0,67734.0,0.001835]
[1729517782066,0.44485308,67735.0,67734.0,0.001835]
[1729517782512,0.5101321,67735.0,67734.0,0.001835]
[1729517782728,0.51013225,67735.0,67734.0,0.001835]
[1729517782942,0.51064825,67735.0,67734.0,0.001835]
[1729517783159,0.51729027,67735.0,67734.0,0.001835]
[1729517783594,0.4520111,67735.0,67734.0,0.001835]
[1729517783833,0.51729027,67735.0,67734.0,0.001835]
[1729517784478,0.50768234,67735.0,67734.0,0.001835]
[1729517784718,0.44240317,67735.0,67734.0,0.001835]
[1729517785425,0.59448248,67735.0,67734.0,0.001835]
[1729517785684,0.47168386,67735.0,67734.0,0.001835]
[1729517785902,0.44240317,67735.0,67734.0,0.001835]
[1729517786321,0.52946224,67735.0,67734.0,0.001835]
[1729517786564,0.52946224,67735.0,67734.0,0.000835]
[1729517786779,0.45440317,67735.0,67734.0,0.001835]
[1729517787003,0.43140317,67735.0,67734.0,0.001835]
[1729517787481,0.49669743,67735.0,67734.0,0.001835]
[1729517787698,0.43140317,67735.0,67734.0,0.001835]
[1729517787922,0.47493463,67735.0,67734.0,0.001835]
[1729517788138,0.44893402,67735.0,67734.0,0.000835]
[1729517788339,0.46293402,67735.0,67734.0,0.000835]
[1729517788597,0.43140317,67735.0,67734.0,0.001835]
[1729517788814,0.18376917,67735.0,67734.0,0.00222707]
[1729517789075,0.027652,67735.0,67734.0,0.35303328]
[1729517789503,0.027652,67735.0,67734.0,0.19121107]
[1729517789715,0.001652,67735.0,67734.0,0.19521107]
[1729517790157,0.001652,67735.0,67734.0,0.34284707]
[1729517790442,0.001652,67735.0,67734.0,0.34384707]
[1729517790443,0.012652,67735.0,67734.0,0.34384707]
[1729517790662,0.012652,67735.0,67734.0,0.34284707]
[1729517790879,0.022652,67735.0,67734.0,0.34384707]
[1729517791102,0.025652,67735.0,67734.0,0.34384707]
[1729517791310,0.015652,67735.0,67734.0,0.45580138]
[1729517791519,0.024652,67735.0,67734.0,0.45680138]
[1729517791775,0.010652,67735.0,67734.0,0.45680138]
[1729517791989,0.023652,67735.0,67734.0,0.45680138]
[1729517792487,0.023652,67735.0,67734.0,0.35384707]
[1729517792714,0.023652,67735.0,67734.0,0.20621107]
[1729517792974,0.023652,67735.0,67734.0,0.19621107]
[1729517793377,0.023652,67735.0,67734.0,0.34384707]
[1729517794060,0.023652,67735.0,67734.0,0.001835]
[1729517794061,0.44785308,67735.0,67734.0,0.001835]
[1729517794276,0.270642,67731.0,67730.0,0.000835]
[1729517794492,0.41960115,67731.0,67730.0,0.000835]
[1729517794717,0.48949323,67731.0,67730.0,0.000835]
[1729517795172,0.147675,67716.0,67715.0,0.000835]
[1729517795395,0.44506708,67716.0,67715.0,0.004109]
[1729517795624,0.170679,67714.0,67707.0,0.22713457]
[1729517795845,0.170679,67714.0,67713.0,0.0219605]
[1729517795846,0.29663815,67714.0,67713.0,0.0219605]
[1729517796969,0.51777272,67714.0,67713.0,0.0219605]
[1729517797176,0.29663815,67714.0,67713.0,0.0219605]
[1729517797393,0.33363815,67714.0,67713.0,0.0219605]
[1729517797618,0.33363815,67714.0,67713.0,0.0178515]
[1729517797873,0.34763815,67714.0,67713.0,0.0178515]
[1729517798089,0.34763815,67714.0,67713.0,0.0219605]
[1729517798234,0.32463815,67714.0,67713.0,0.0178515]
[1729517798447,0.31063815,67714.0,67713.0,0.1219605]
[1729517798650,0.32463815,67714.0,67713.0,0.1178515]
[1729517798882,0.32463815,67714.0,67713.0,0.2178515]
[1729517799088,0.33863815,67714.0,67713.0,0.2229605]
[1729517799309,0.29663815,67714.0,67713.0,0.2219605]
[1729517799551,0.31063815,67714.0,67713.0,0.2219605]
[1729517799926,0.32463815,67714.0,67713.0,0.2229605]
[1729517800280,0.31063815,67714.0,67713.0,0.2219605]
[1729517800493,0.028,67714.0,67713.0,0.22485257]
[1729517800732,0.028,67714.0,67713.0,0.12633657]
[1729517800949,0.014,67714.0,67713.0,0.12533657]
[1729517801385,0.22113457,67722.0,67718.0,0.004109]
[1729517801620,0.22113457,67722.0,67713.0,0.1219605]
[1729517801621,0.147679,67714.0,67713.0,0.1219605]
[1729517801837,0.161679,67714.0,67713.0,0.1219605]
[1729517802259,0.161679,67714.0,67713.0,0.1203355]
[1729517802469,0.161679,67714.0,67713.0,0.1234445]
[1729517802885,0.161679,67714.0,67713.0,0.1229605]
[1729517803119,0.147679,67714.0,67713.0,0.1219605]
[1729517803344,0.161679,67714.0,67713.0,0.1219605]
[1729517803579,0.175679,67714.0,67713.0,0.1229605]
[1729517803996,0.175679,67714.0,67713.0,0.1237865]
[1729517804355,0.175679,67714.0,67713.0,0.1252705]
[1729517804558,0.16295915,67714.0,67713.0,0.1252705]
[1729517804797,0.16295915,67714.0,67713.0,0.12716257]
[1729517804798,0.17695915,67714.0,67713.0,0.12716257]
[1729517805042,0.030614,67714.0,67713.0,0.12716257]
[1729517805799,0.016614,67714.0,67713.0,0.12716257]
[1729517806046,0.016614,67714.0,67713.0,0.12616257]
[1729517806224,0.016614,67714.0,67713.0,0.12716257]
[1729517806425,0.030614,67714.0,67713.0,0.12716257]
[1729517806640,0.06521584,67736.0,67713.0,0.12716257]
[1729517806641,0.04347722,67740.0,67734.0,0.15363707]
[1729517806854,0.28635041,67744.0,67734.0,0.15363707]
[1729517806855,0.22113457,67744.0,67734.0,0.15863707]
[1729517807060,0.22113457,67744.0,67734.0,0.01100107]
[1729517807266,0.22113457,67744.0,67734.0,0.00600107]
[1729517807494,0.51633557,67751.0,67734.0,0.01100107]
[1729517807711,0.22113457,67751.0,67734.0,0.20174958]
[1729517807930,0.36873457,67751.0,67734.0,0.20174958]
[1729517808148,0.22113457,67751.0,67734.0,0.17012107]
[1729517808579,0.36873457,67751.0,67734.0,0.17012107]
[1729517808787,0.015652,67735.0,67734.0,0.17012107]
[1729517809234,0.001652,67735.0,67734.0,0.17012107]
[1729517809453,0.018652,67735.0,67734.0,0.02348507]
[1729517809660,0.013652,67735.0,67734.0,0.17012107]
[1729517810070,0.018652,67735.0,67734.0,0.17012107]
[1729517810534,0.023652,67735.0,67734.0,0.16963707]
[1729517810754,0.023652,67735.0,67734.0,0.17112107]
[1729517810987,0.011652,67735.0,67734.0,0.17112107]
[1729517811193,0.021652,67735.0,67734.0,0.17212107]
[1729517811822,0.001652,67735.0,67734.0,0.17012107]
[1729517812038,0.012652,67735.0,67734.0,0.17112107]
[1729517812281,0.012652,67735.0,67734.0,0.17212107]
[1729517812511,0.001652,67735.0,67734.0,0.17112107]
[1729517812933,0.011652,67735.0,67734.0,0.17112107]
[1729517814036,0.011652,67735.0,67734.0,0.00848507]
[1729517814275,0.001652,67735.0,67734.0,0.01248507]
[1729517814511,0.001652,67735.0,67734.0,0.01348507]
[1729517815362,0.006652,67735.0,67734.0,0.01531107]
[1729517816088,0.011652,67735.0,67734.0,0.01531107]
[1729517816306,0.011652,67735.0,67732.0,0.005]
[1729517816506,0.011652,67735.0,67732.0,0.00876739]
[1729517816942,0.011652,67735.0,67730.0,0.005]
[1729517817199,0.011652,67735.0,67734.0,0.15640339]
[1729517817634,0.020652,67735.0,67734.0,0.15640339]
[1729517817838,0.020652,67735.0,67734.0,0.15140339]
[1729517818044,0.011652,67735.0,67734.0,0.15640339]
[1729517818242,0.001652,67735.0,67734.0,0.15640339]
[1729517818498,0.016652,67735.0,67734.0,0.15940339]
[1729517818951,0.012652,67735.0,67734.0,0.15740339]
[1729517819358,0.018652,67735.0,67734.0,0.15740339]
[1729517819807,0.018652,67735.0,67734.0,0.15840339]
[1729517820478,0.007652,67735.0,67734.0,0.153636]
[1729517820693,0.007652,67735.0,67734.0,0.15740339]
[1729517820946,0.017652,67735.0,67730.0,0.001394]
[1729517821207,0.017652,67735.0,67730.0,0.00876739]
[1729517821371,0.007652,67735.0,67731.0,0.147642]
[1729517821621,0.005652,67735.0,67730.0,0.00876739]